Cogmind - Beta 17 @@@ ROGUE MODE // 2026.07.15 @ 00:00:13 Player: rz Result: Destroyed by P-70 Sage with Tesla Rifle Performance ------------- Evolutions (6) 3000 Regions Visited (10) 2000 Robots Destroyed (145) 725 Value Destroyed (3525) 3525 Prototype IDs (29) 580 Alien Tech Used (0) 0 Bonus (720) 720 TOTAL SCORE: 10550 Bonus ------- High Alert Combat Kills 45 Follower Combat Kills 375 Aligned with FarCom 300 Cogmind --------- Core Integrity 0/1150 Matter 129/300 Energy 100/100 System Corruption 16% Temperature Cool (0) Movement Walking (90) Location -4/Factory Parts ------- > --- POWER (1) -------- (None) > --- PROPULSION (2) --- Advanced VSS Leg > --- UTILITY (14) ----- (None) > --- WEAPON (2) ------- (None) > --- INVENTORY (5) ---- Wheel Cargo Storage Unit Energy Well (350) Field Lobotomy Kit (4) Peak State ------------ > --- POWER ------------ Neutrino Core > --- PROPULSION ------- Wheel Armored Wheel > --- UTILITY ---------- Advanced Heat Sink Cargo Storage Unit Improved Terrain Scan Processor Launcher Guidance Computer Armor Integrity Analyzer Improved Medium Armor Plating Improved Medium Armor Plating Improved Medium Armor Plating Improved Medium Armor Plating Improved Medium Armor Plating Improved Focal Shield Thermal Defense Suite Improved System Shield > --- WEAPON ----------- Missile Launcher Lance > --- INVENTORY -------- Cooled Ion Engine Cooled Ion Engine Cooled Ion Engine Micro Fission Core Wheel Wheel Wheel Wheel Cooling System Improved Coolant Injector Cargo Storage Unit Energy Well Experimental Sensor Array Signal Interpreter Transmission Jammer Hardened Medium Armor Plating Improved Medium Armor Plating Graphene Brace Component Analysis Suite Long-range Tractor Beam Advanced Plasma Cannon Heavy Phase Cannon Heavy Phase Cannon Heavy Phase Cannon Missile Launcher Missile Launcher Field Lobotomy Kit [Rating: 84] Favorites ----------- Power Cooled Ion Engine Engine Cooled Ion Engine Power Core Micro Nuclear Core Propulsion Wheel Treads Light Treads Leg Aluminum Leg Wheel Wheel Hover Unit Improved Linear Gravjet Utility Improved Medium Armor Plating Device Improved Heat Sink Storage Cargo Storage Unit Processor Armor Integrity Analyzer Hackware Improved System Shield Protection Improved Medium Armor Plating Weapon Hammer Energy Gun Small Laser Energy Cannon Advanced Plasma Cannon Ballistic Gun Assault Rifle Launcher Missile Launcher Special Weapon Field Lobotomy Kit Impact Weapon Hammer Slashing Weapon Mining Claw Piercing Weapon Heavy Pick Build | -11 -10 -9 -9 -9 -8 -8 -7 -6 -5 -4 ------- Run | Yrd Mat Mat Min Exi Min Mat Fac Fac Fac Fac Slots Evolved 12 | . . 2 . . . 2 2 2 2 2 Power . | . . . . . . . . . . . Propulsion . | . . . . . . . . . . . Utility 12 | . . 2 . . . 2 2 2 2 2 Weapon . | . . . . . . . . . . . Parts Attached 107 | 6 6 11 7 2 2 6 11 22 15 19 Power 13 | 1 1 2 . 1 1 1 . 2 3 1 Engine 9 | 1 1 2 . 1 1 1 . 1 . 1 Core 4 | . . . . . . . . 1 3 . Reactor . | . . . . . . . . . . . Propulsion 26 | 2 2 5 4 . . 2 1 3 1 6 Treads 2 | 2 . . . . . . . . . . Leg 4 | . 2 1 . . . . . . . 1 Wheel 19 | . . 4 4 . . 2 1 3 1 4 Hover 1 | . . . . . . . . . . 1 Flight . | . . . . . . . . . . . Utility 48 | 1 1 3 3 1 . 3 10 11 9 6 Device 17 | . . 1 1 1 . 1 5 5 2 1 Storage 3 | 1 . . . . . 2 . . . . Processor 6 | . . 1 . . . . 3 2 . . Hackware 2 | . . . . . . . . 1 1 . Protection 20 | . 1 1 2 . . . 2 3 6 5 Artifact . | . . . . . . . . . . . Weapon 20 | 2 2 1 . . 1 . . 6 2 6 Energy Gun 2 | 1 . . . . . . . . . 1 Energy Cannon 1 | . . . . . . . . . . 1 Ballistic Gun 3 | 1 1 . . . . . . 1 . . Ballistic Cannon . | . . . . . . . . . . . Launcher 7 | . . . . . 1 . . 2 1 3 Special Weapon 2 | . . . . . . . . 1 . 1 Impact Weapon 2 | . 1 1 . . . . . . . . Slashing Weapon 1 | . . . . . . . . 1 . . Piercing Weapon 2 | . . . . . . . . 1 1 . Special Melee Weapon . | . . . . . . . . . . . Unidentified Prototypes 6 | . . 1 1 . . 1 . 2 . 1 Corrupted Parts 4 | . . . 2 . . . . 2 . . System Corruption 19 | . . . 13 . . . . 6 . . Parts Lost 62 | . 4 3 7 . 2 2 6 11 7 20 Power 8 | . 1 1 1 . 1 . . 2 1 1 Propulsion 18 | . 2 1 4 . . 2 1 3 . 5 Utility 26 | . . 1 2 . 1 . 3 6 4 9 Weapon 10 | . 1 . . . . . 2 . 2 5 Highest Loss Streak 12 | . 3 2 4 . 2 1 6 6 2 12 To Critical Strikes 1 | . . . . . . . . . . 1 Average Backups 14 | . 3 7 7 8 6 6 14 21 27 15 Power 2 | . 1 1 1 . . . 3 4 3 2 Propulsion 1 | . . 2 1 1 1 . 1 1 4 1 Utility 7 | . 1 2 3 3 3 3 8 12 13 7 Weapon 1 | . 1 1 1 2 1 1 . 1 5 3 Tool/Special . | . . . . . . . . . . . Unused Backups 18 | . . . . . . . . 2 . 16 Power 3 | . . . . . . . . . . 3 Propulsion 2 | . . . . . . . . . . 2 Utility 9 | . . . . . . . . 1 . 8 Weapon 3 | . . . . . . . . . . 3 Tool/Special 1 | . . . . . . . . 1 . . Average Slot Usage (%) 80 | . 71 88 83 61 81 71 85 86 92 53 Engine 5 | . 11 9 5 8 9 9 7 4 . 1 Core 1 | . . . . . . . . 1 4 2 Leg 1 | . 5 12 . . . . . . . . Wheel 9 | . . 9 15 11 11 11 15 10 11 5 Device 12 | . . 4 7 4 11 14 18 19 17 9 Storage 7 | . 14 11 11 11 11 9 7 6 5 2 Processor 11 | . . 10 11 11 11 9 10 19 17 7 Hackware 1 | . . . . . . . . 3 3 2 Protection 10 | . 3 9 10 11 6 . 13 8 18 12 Ballistic Gun 2 | . 17 3 . . . . . 1 . . Launcher 2 | . . . . . 8 9 3 3 3 2 Impact Weapon 6 | . 6 15 22 4 13 9 7 1 . . Piercing Weapon 1 | . . . . . . . . 3 5 2 Peak Build Rating 84 | 6 7 14 17 11 14 19 33 59 73 84 Average Rating 33 | 3 5 10 9 8 12 13 30 47 68 49 On Entrance 21 | . 6 7 11 8 11 12 19 32 59 73 Avg Prop Armor Cover (%) . | . . . . . . . . . . . Naked Turns 40 | . . . . . . . . . . 40 Heaviest Build 205 | 11 16 23 20 16 22 155 165 189 203 205 Greatest Support 40 | 40 40 20 20 16 16 32 32 28 22 22 Greatest Overweight (x) 13 | . 4 1 1 . 1 4 10 13 9 9 Average Overweight (x) 3 | . 1 . . . . . 5 8 8 3 Largest Inventory Capacity 30 | 8 8 8 8 8 8 30 30 30 30 30 Average Capacity 19 | 6 8 8 8 8 8 9 30 30 30 18 Most Carried 30 | 1 6 8 8 8 8 12 19 30 30 30 Average Carried 15 | . 3 7 7 7 6 6 16 22 28 16 Final Capacity 30 | 8 8 8 8 8 8 30 30 30 30 5 Final Carried 30 | 1 6 8 8 8 6 12 19 30 30 5 Class Distribution -------------------- 43% | Mutant 33% | Hauler-Mutant 21% | Hauler-Assassin Dominant Class ---------------- Mutant | -10/Materials Mutant | -9/Materials Mutant | -9/Mines Mutant | -9/Exiles Mutant | -8/Mines Mutant | -8/Materials Hauler-Assassin | -7/Factory Hauler-Assassin | -6/Factory Hauler-Mutant | -5/Factory Hauler-Mutant | -4/Factory Resources | -11 -10 -9 -9 -9 -8 -8 -7 -6 -5 -4 ----------- Run | Yrd Mat Mat Min Exi Min Mat Fac Fac Fac Fac Matter Collected 1944 | 87 393 156 100 . 160 86 163 334 296 169 Remotely 124 | . . . . . . . . . . 124 Salvage Created 4550 | . 508 1092 346 . 63 453 73 1153 462 400 Parts 216 | . 29 26 11 . 11 19 5 66 26 23 Haulers Intercepted 8 | . 1 3 . . . 1 . 2 . 1 Recyclers Shooed 5 | . . 2 . . . . . 2 . 1 Parts Field Recycled . | . . . . . . . . . . . Retrieved Matter . | . . . . . . . . . . . Parts Self-Destructed . | . . . . . . . . . . . Prevented . | . . . . . . . . . . . Parts Restored . | . . . . . . . . . . . Kills | -11 -10 -9 -9 -9 -8 -8 -7 -6 -5 -4 ------- Run | Yrd Mat Mat Min Exi Min Mat Fac Fac Fac Fac Combat Hostiles Destroyed 80 | . 12 12 8 . 9 7 2 12 7 11 Melee 19 | . . 6 5 . . . . 1 5 2 Guns 13 | . 12 1 . . . . . . . . AOE 37 | . . . . . 8 6 1 11 2 9 Classes Destroyed 12 | . 5 3 1 . 1 1 1 . . . Worker 20 | . 5 2 2 . . 3 . 6 1 1 Builder 20 | . 2 2 3 . . 1 . 6 5 1 Tunneler 6 | . . . 2 . 1 . . 1 . 2 Hauler 8 | . 1 3 . . . 1 . 2 . 1 Recycler 9 | . . 4 . . . 2 . 2 . 1 Watcher 2 | . . 1 . . . . . 1 . . Swarmer 29 | . 6 . 4 . 8 3 . 4 . 4 Grunt 30 | . 6 9 3 . . 2 . 7 1 2 Duelist 1 | . . . . . . 1 . . . . Sentry 8 | . . 3 1 . . 1 1 . 2 . Hunter 8 | . . . . . 1 . . . 2 5 Programmer 4 | . . . . . . . 1 1 2 . Best Kill Streak 12 | . 7 4 5 . 4 11 1 9 3 12 Combat Bots Only 9 | . 7 4 4 . 4 6 1 4 1 9 Max Kills in Single Turn 4 | . 2 1 1 . 4 2 1 3 2 2 Gunslinging 1 | . 1 . . . . . . . . . Exploded 4 | . . . . . 4 2 1 3 1 2 Melee 1 | . . 1 1 . . . . 1 1 1 Uniques/NPCs Destroyed . | . . . . . . . . . . . Combat | -11 -10 -9 -9 -9 -8 -8 -7 -6 -5 -4 -------- Run | Yrd Mat Mat Min Exi Min Mat Fac Fac Fac Fac Hostile Shots Fired 886 | . 88 52 95 . 21 12 150 88 86 294 Missed 275 | . 26 10 34 . 4 6 50 41 14 90 Hits 611 | . 62 42 61 . 17 6 100 47 72 204 Melee 14 | . . . . . . . . . . 14 Projectile 597 | . 62 42 61 . 17 6 100 47 72 190 AOE 2 | . . . . . . . . 2 . . Critical Strikes 23 | . . . 1 . . 1 . 1 4 16 Damage Taken 9753 | . 664 565 684 . 258 100 883 1066 1485 4048 Core 1993 | . 95 122 127 . 49 . 146 183 110 1161 Absorbed by Shields . | . . . . . . . . . . . Ignored by Resistances 896 | . . . . . . . . 95 214 587 Core Remaining (%) 76 | 100 62 . . . 25 100 79 78 89 . Volleys Fired 134 | . 45 10 . . 6 6 3 24 9 31 Largest 2 | . 2 2 . . 1 1 1 1 1 2 Hottest 98 | . 60 60 . . 33 33 33 39 36 98 Shots Fired 198 | . 89 20 . . 7 6 3 24 9 40 Gun 118 | . 89 20 . . . . . 1 . 8 Cannon 5 | . . . . . . . . . . 5 Launcher 73 | . . . . . 7 6 3 22 9 26 Special 2 | . . . . . . . . 1 . 1 Kinetic 77 | . 66 10 . . . . . 1 . . Thermal 39 | . 23 10 . . . . . . . 6 Explosive 59 | . . . . . 7 6 3 8 9 26 Electromagnetic 22 | . . . . . . . . 14 . 8 Robot Hit Streak 10 | . 8 9 . . 1 2 1 10 5 6 Robot Miss Streak 4 | . 4 2 . . 2 2 2 1 1 3 Penetration Max . | . . . . . . . . . . . Secondary Targets 3 | . 3 . . . . . . . . . Max Gunslinging Chain 1 | . 1 . . . . . . . . . Shots Hit Robots 252 | . 58 49 31 . 7 13 12 27 28 27 Core Hits 207 | . 29 11 4 . 10 12 3 51 25 62 Critical Kills 1 | . . 1 . . . . . . . . Critical Parts Destroyed 22 | . . 11 7 . 1 3 . . . . Critical Strikes 30 | . . 13 7 . 1 3 . . 6 . Smash 24 | . . 13 7 . 1 3 . . . . Impale 6 | . . . . . . . . . 6 . Melee Attacks 189 | . 9 45 43 . 6 11 14 18 38 5 Impact 130 | . 9 45 43 . 6 11 14 2 . . Slashing 1 | . . . . . . . . 1 . . Piercing 58 | . . . . . . . . 15 38 5 Sneak Attacks 35 | . 3 8 8 . . 5 . 8 3 . Combat Hostiles . | . . . . . . . . . . . Follow-up Attacks 11 | . . 5 5 . 1 . . . . . Damage Inflicted 12404 | . 892 1327 1022 . 621 816 314 2556 1708 3148 Guns 972 | . 636 154 . . . . . . . 182 Cannons 101 | . . . . . . . . . . 101 Explosions 6401 | . . . . . 523 442 84 1944 790 2618 Melee 4838 | . 256 1173 1022 . 98 374 230 612 918 155 Ramming 92 | . . . . . . . . . . 92 Kinetic 600 | . 500 100 . . . . . . . . Thermal 506 | . 136 54 . . . . . 215 . 101 Explosive 4875 | . . . . . 523 442 84 468 740 2618 Electromagnetic 1493 | . . . . . . . . 1261 50 182 Impact 3153 | . 256 1173 1022 . 98 374 230 . . . Slashing . | . . . . . . . . . . . Piercing 1685 | . . . . . . . . 612 918 155 Highest Corruption 16 | . 1 . 13 13 13 . 1 9 2 16 Average Corruption 5 | . 1 . 12 13 13 . 1 3 1 8 Corruption Purged . | . . . . . . . . . . . Corruption Blocked . | . . . . . . . . . . . Effects 65 | . . . 18 7 8 . 8 19 3 2 Message Errors 17 | . . . 4 1 2 . 2 6 2 . Matter Fused 17 | . . . 5 4 1 . 1 3 1 2 Heat Flow Errors 10 | . . . 1 1 3 . 1 4 . . Energy Discharges 6 | . . . 1 1 . . 2 2 . . Parts Fused 1 | . . . . . . . . 1 . . Data Loss (minor) 6 | . . . 4 . . . 1 1 . . Data Loss (major) 5 | . . . 2 . 1 . 1 1 . . Misfires 1 | . . . . . 1 . . . . . Alerts 2 | . . . 1 . . . . 1 . . Overload Shots . | . . . . . . . . . . . Overflow Damage 1514 | . 107 454 418 . 64 154 5 137 135 40 Projectiles 14 | . . . . . . . . . . 14 Explosions 139 | . . . . . 22 . . 39 52 26 Melee 1361 | . 107 454 418 . 42 154 5 98 83 . Knockbacks 13 | . 2 6 4 . . 1 . . . . Impact 13 | . 2 6 4 . . 1 . . . . Kinetic . | . . . . . . . . . . . Secondary . | . . . . . . . . . . . Self-Inflicted Damage 962 | . . . . . 78 12 25 101 399 347 Shots 21 | . . . . . 2 1 1 4 6 7 Rammed 23 | . . . . . . . . . . 23 Targets Rammed 37 | . . . . . . . . . . 37 Kicked 14 | . . . . . . . . . . 14 Crushed . | . . . . . . . . . . . Highest Temperature 264 | . 141 42 155 131 264 . 259 227 . 31 Average Temperature 62 | . 52 12 69 80 131 . 151 92 . 15 Received Heat Transfer 1363 | . 231 258 213 . . 36 231 81 81 232 Siege Activations . | . . . . . . . . . . . Martial Activations . | . . . . . . . . . . . Shielding Activations . | . . . . . . . . . . . Robots Disrupted 1 | . . . . . . . . . 1 . Combat Hostiles 1 | . . . . . . . . . 1 . Robots Corrupted 31 | . 2 13 9 . 1 4 1 1 . . Combat Hostiles 11 | . . 5 3 . 1 1 1 . . . Parts Fried 52 | . 2 20 16 . 2 4 2 6 . . Impact Corruptions 55 | . 5 20 19 . 2 7 2 . . . Robots Melted . | . . . . . . . . . . . Combat Hostiles . | . . . . . . . . . . . Parts Melted . | . . . . . . . . . . . Heat Transferred 875 | . 300 125 . . . . . 300 . 150 Parts Sabotaged . | . . . . . . . . . . . Parts Stolen . | . . . . . . . . . . . Parts Stripped . | . . . . . . . . . . . Power Chain Reactions 4 | . . . . . . . . 4 . . Alert | -11 -10 -9 -9 -9 -8 -8 -7 -6 -5 -4 ------- Run | Yrd Mat Mat Min Exi Min Mat Fac Fac Fac Fac Maximum Alert Level 2 | . . . . . . 1 . 2 1 1 Low Security (%) 73 | 100 100 100 100 . 100 57 100 74 . 75 Level 1 22 | . . . . . . 42 . 3 100 24 Level 2 4 | . . . . . . . . 22 . . Level 3 . | . . . . . . . . . . . Level 4 . | . . . . . . . . . . . Level 5 . | . . . . . . . . . . . High Security . | . . . . . . . . . . . Max Security . | . . . . . . . . . . . Peak Influence 532 | . 175 143 89 . 199 274 101 532 395 288 Initial 252 | . . 11 49 . . 57 101 . 252 99 Average 120 | . 65 52 29 . 110 145 16 151 281 131 Influence Increases 3583 | . 347 360 245 . 279 317 102 871 479 583 Destroy 0b10 Robot/C 1780 | . 240 240 160 . 180 140 40 420 140 220 Destroy 0b10 Robot/NC 345 | . 40 60 35 . 5 35 . 110 30 30 Destroy Leader 420 | . 52 58 20 . 30 32 20 126 40 42 Allied During Kill 28 | . . . . . . . . 28 . . Successful Hack 40 | . . 2 . . . . . 21 17 . Disable Machine 315 | . 15 . 15 . 15 30 15 75 120 30 Destroy Structure 445 | . . . . . 49 50 27 91 132 96 Partial Spotted 60 | . . . 15 . . 30 . . . 15 Lose Combat Pursuer 150 | . . . . . . . . . . 150 Influence Decreases 3550 | . 318 262 372 . 130 242 326 356 791 753 Entered New Map 678 | . . 18 78 . . 92 123 . 263 104 Time Decay 2192 | . 288 214 224 . 110 130 163 256 458 349 Search Patrol Dispatched 100 | . . . . . . . . . . 100 Lost Part 560 | . 30 30 70 . 20 20 40 80 70 200 Lost Ally 20 | . . . . . . . . 20 . . Squads Dispatched 23 | . 2 1 . . . 1 1 7 4 7 Investigation 2 | . . 1 . . . 1 . . . . Extermination 6 | . . . . . . . 1 2 2 1 Reinforcement 12 | . 2 . . . . . . 5 2 3 Assault . | . . . . . . . . . . . Garrison 3 | . . . . . . . . . . 3 Intercept . | . . . . . . . . . . . Searches Triggered 1 | . . . . . . . . . . 1 Construction Impeded 5 | . . . . . . . . 2 1 2 Haulers Reinforced 2 | . . . . . . . . 1 . 1 Active Scanning Responses . | . . . . . . . . . . . Cargo Convoy Interrupts . | . . . . . . . . . . . Stealth | -11 -10 -9 -9 -9 -8 -8 -7 -6 -5 -4 --------- Run | Yrd Mat Mat Min Exi Min Mat Fac Fac Fac Fac Distress Signals 9 | . 2 2 . . . . . 1 1 3 Communications Jammed . | . . . . . . . . . . . Distress Signals . | . . . . . . . . . . . Times Spotted 131 | . 23 16 9 . 9 11 6 21 13 23 Peak Tracking Total 9 | . 5 5 4 . 4 3 4 5 3 9 Tactical Retreats 2 | . . . . . . . . . . 2 Traps | -11 -10 -9 -9 -9 -8 -8 -7 -6 -5 -4 ------- Run | Yrd Mat Mat Min Exi Min Mat Fac Fac Fac Fac Traps Triggered 7 | . 1 2 . . . 1 2 . . 1 Indirectly . | . . . . . . . . . . . Trap Hack Attempts . | . . . . . . . . . . . Triggered . | . . . . . . . . . . . Disarmed . | . . . . . . . . . . . Reprogrammed . | . . . . . . . . . . . Reused . | . . . . . . . . . . . Traps Extracted . | . . . . . . . . . . . Installed . | . . . . . . . . . . . Triggered . | . . . . . . . . . . . Machines | -11 -10 -9 -9 -9 -8 -8 -7 -6 -5 -4 ---------- Run | Yrd Mat Mat Min Exi Min Mat Fac Fac Fac Fac Machines Disabled 21 | . 1 . 1 . 1 2 1 5 8 2 Max in Single Turn 4 | . 1 . 1 . 1 2 1 1 4 2 Machines Repaired . | . . . . . . . . . . . Machines Dismantled . | . . . . . . . . . . . Machines Sabotaged . | . . . . . . . . . . . Overloaded Fab Kills . | . . . . . . . . . . . Hacking | -11 -10 -9 -9 -9 -8 -8 -7 -6 -5 -4 --------- Run | Yrd Mat Mat Min Exi Min Mat Fac Fac Fac Fac Machines Accessed 11 | . 1 3 1 1 . . 1 1 2 1 Terminals 2 | . . 1 . . . . . . 1 . Fabricators . | . . . . . . . . . . . Repair Stations 1 | . . . . . . . . 1 . . Recycling Units 2 | . 1 . . . . . 1 . . . Scanalyzers 4 | . . 2 . . . . . . 1 1 Garrison Access . | . . . . . . . . . . . Total Hacks 19 | . 4 5 1 1 . . 1 2 3 2 Successful 9 | . 1 2 1 1 . . 1 1 2 . Failed 10 | . 3 3 . . . . . 1 1 2 Catastrophic 1 | . . . . . . . . 1 . . Database Lockouts . | . . . . . . . . . . . Manual 1 | . . . . 1 . . . . . . Terminals 3 | . . 2 . . . . . . 1 . Fabricators . | . . . . . . . . . . . Repair Stations 2 | . . . . . . . . 2 . . Recycling Units 5 | . 4 . . . . . 1 . . . Scanalyzers 7 | . . 3 . . . . . . 2 2 Garrison Access . | . . . . . . . . . . . Terminal Hacks 3 | . . . 1 1 . . . . 1 . Open Door 1 | . . . 1 . . . . . . . Open DSF 1 | . . . . . . . . . 1 . Proto ID Catalog 1 | . . . . 1 . . . . . . Fabricator Hacks . | . . . . . . . . . . . Repair Station Hacks 1 | . . . . . . . . 1 . . Scan Component 1 | . . . . . . . . 1 . . Recycling Unit Hacks 2 | . 1 . . . . . 1 . . . Retrieve Components 2 | . 1 . . . . . 1 . . . Scanalyzer 3 | . . 2 . . . . . . 1 . Retrieve Study 3 | . . 2 . . . . . . 1 . Garrison Access Hacks . | . . . . . . . . . . . Unauthorized Hacks . | . . . . . . . . . . . Terminals . | . . . . . . . . . . . Fabricators . | . . . . . . . . . . . Repair Stations . | . . . . . . . . . . . Recycling Units . | . . . . . . . . . . . Scanalyzers . | . . . . . . . . . . . Garrison Access . | . . . . . . . . . . . Data Cores Recovered . | . . . . . . . . . . . Used . | . . . . . . . . . . . Hacking Detections 7 | . 1 3 . . . . . 1 1 1 Full Trace Events . | . . . . . . . . . . . Feedback Events . | . . . . . . . . . . . Feedback Blocked . | . . . . . . . . . . . Robot Schematics Acquired . | . . . . . . . . . . . Robots Built . | . . . . . . . . . . . Authchips . | . . . . . . . . . . . Time . | . . . . . . . . . . . Total Robot Build Rating . | . . . . . . . . . . . Part Schematics Acquired . | . . . . . . . . . . . Parts Built . | . . . . . . . . . . . Authchips . | . . . . . . . . . . . Time . | . . . . . . . . . . . Total Part Build Rating . | . . . . . . . . . . . Part Studies Acquired 3 | . . 2 . . . . . . 1 . Parts Repaired . | . . . . . . . . . . . Time . | . . . . . . . . . . . Parts Recycled . | . . . . . . . . . . . Recycled Matter . | . . . . . . . . . . . Retrieved Matter . | . . . . . . . . . . . Retrieved Components 3 | . 2 . . . . . 1 . . . Parts Scanalyzed . | . . . . . . . . . . . Part Schematics Acquired . | . . . . . . . . . . . Parts Damaged . | . . . . . . . . . . . Bothacking | -11 -10 -9 -9 -9 -8 -8 -7 -6 -5 -4 ------------ Run | Yrd Mat Mat Min Exi Min Mat Fac Fac Fac Fac Used RIF Installer . | . . . . . . . . . . . Robots Hacked . | . . . . . . . . . . . Non-combat . | . . . . . . . . . . . Combat . | . . . . . . . . . . . Robot Hacks Applied . | . . . . . . . . . . . Relay Couplers Released . | . . . . . . . . . . . Fabnet Peak Effective % . | . . . . . . . . . . . Robots Rewired . | . . . . . . . . . . . Allies Hacked . | . . . . . . . . . . . Hacks Repelled . | . . . . . . . . . . . Allies | -11 -10 -9 -9 -9 -8 -8 -7 -6 -5 -4 -------- Run | Yrd Mat Mat Min Exi Min Mat Fac Fac Fac Fac Total Allies 1 | . . . . . . . . 1 . . Largest Group 1 | . . . . . . . . 1 . . Highest-Rated Group 85 | . . . . . . . . 85 . . Highest-Rated Ally 85 | . . . . . . . . 85 . . Total Orders 1 | . . . . . . . . 1 . . AID 1 | . . . . . . . . 1 . . Ally Attacks 30 | . . . . . . . . 30 . . Total Damage 2118 | . . . . . . . . 2118 . . Kills 13 | . . . . . . . . 13 . . Allies Corrupted . | . . . . . . . . . . . Allies Melted . | . . . . . . . . . . . Field Lobotomies 1 | . . . . . . . . 1 . . Intel | -11 -10 -9 -9 -9 -8 -8 -7 -6 -5 -4 ------- Run | Yrd Mat Mat Min Exi Min Mat Fac Fac Fac Fac Active Infowar (turns) 1744 | . . . 2 . . . 770 972 . . Sensors 256 | . . . 2 . . . 254 . . . Terrain 1307 | . . . . . . . 335 972 . . Jamming 181 | . . . . . . . 181 . . . Robot Analysis Total . | . . . . . . . . . . . Derelict Logs Recovered 1 | . . . 1 . . . . . . . Drone Launches . | . . . . . . . . . . . Drone Recoveries . | . . . . . . . . . . . Exploration | -11 -10 -9 -9 -9 -8 -8 -7 -6 -5 -4 ------------- Run | Yrd Mat Mat Min Exi Min Mat Fac Fac Fac Fac Turns Passed 6981 | 59 828 549 611 196 247 271 917 1362 1147 794 Spaces Moved 3718 | 35 360 356 583 213 222 259 400 522 459 309 Core 230 | 5 141 . . . . 1 . . . 83 Treads 127 | 30 97 . . . . . . . . . Legs 289 | . 122 164 . . . . . . . 3 Wheels 2961 | . . 192 583 213 222 258 400 522 459 112 Hover 111 | . . . . . . . . . . 111 Flight . | . . . . . . . . . . . Fastest Speed 40 | 50 120 70 70 90 90 70 140 165 180 40 Average Speed 138 | 144 179 97 84 90 97 78 161 216 197 108 Slowest Speed 285 | 160 250 120 105 90 105 250 220 285 215 210 Overloaded Moves . | . . . . . . . . . . . Propulsion Burnouts . | . . . . . . . . . . . Robots Hopped . | . . . . . . . . . . . Potential Cave-ins . | . . . . . . . . . . . Cave-ins Triggered . | . . . . . . . . . . . Exploration Rate (%) 33 | 3 69 33 94 42 57 24 8 13 13 12 Regions Visited 10 Branch Regions 3 Pre-discovered Areas . | . . . . . . . . . . . Known Exits Taken . | . . . . . . . . . . . Unknown Exits Taken 10 | 1 1 1 1 1 1 1 1 1 1 . Scrap Searched 2 | . . . 1 . 1 . . . . . Spaces Dug 15 | . . . . . . . 1 3 11 . Terrain Destroyed 380 | . . . . . 54 66 31 57 118 54 Melee 15 | . . . . . . . 1 3 11 . Projectile 2 | . . . . . . . . . . 2 AOE 363 | . . . . . 54 66 30 54 107 52 Terrain Rammed . | . . . . . . . . . . . Walls Destroyed . | . . . . . . . . . . . Machines Disabled . | . . . . . . . . . . . Actions | -11 -10 -9 -9 -9 -8 -8 -7 -6 -5 -4 --------- Run | Yrd Mat Mat Min Exi Min Mat Fac Fac Fac Fac Total 4988 | 41 437 471 636 218 236 301 640 686 619 703 Wait 698 | . 8 40 4 . . 10 202 60 81 293 Move 3708 | 34 359 355 582 212 221 258 399 521 458 309 Hop . | . . . . . . . . . . . Pick Up 70 | 1 7 7 3 1 . 6 7 26 8 4 Fast Attach 52 | 6 3 5 3 . 1 5 9 12 1 7 Attach 45 | . 2 1 4 2 2 2 2 12 8 10 Detach 7 | . . . 1 2 . 1 1 1 1 . Swap 23 | . 4 6 1 . 1 . 1 1 6 3 Drop 37 | . . 9 1 1 . 2 2 11 7 4 Fire 134 | . 45 10 . . 6 6 3 24 9 31 Melee 175 | . 9 38 37 . 5 11 14 18 38 5 Ram 23 | . . . . . . . . . . 23 Kick 14 | . . . . . . . . . . 14 Crush . | . . . . . . . . . . . Escape Stasis . | . . . . . . . . . . . Rewire 2 | . . . . . . . . . 2 . Trap . | . . . . . . . . . . . Miscellaneous . | . . . . . . . . . . . Route ------- -11/Scrapyard -10/Materials (discovered 2 exits: *Mat / [*Sub]) -9/Materials -9/Mines (discovered 4 exits: *Mat x2 / *Exi / [*Zio]) -9/Exiles -8/Mines -8/Materials -7/Factory -6/Factory -5/Factory -4/Factory History --------- Turn | Location | Event 5 | -11/Scrapyard | Discovered new exit (range 15) 60 | -11/Scrapyard | Entered Materials 261 | -10/Materials | Destroyed 7 combat bots 305 | -10/Materials | Build established: Mutant 321 | -10/Materials | Lost 3 parts (1p2n) 571 | -10/Materials | Discovered new exit (range 13) 870 | -10/Materials | Discovered new exit (range 13) 888 | -10/Materials | Entered another Materials area 888 | -9/Materials | Evolved 2 slots: Utility x2 1358 | -9/Materials | Discovered new exit (range 16) 1437 | -9/Materials | Entered Mines 1515 | -9/Mines | Found a hidden stash of uninstalled traps 1518 | -9/Mines | Discovered new exit (range 15) 1525 | -9/Mines | System corruption reached 10% 1533 | -9/Mines | Learned 2 Materials zone layouts 1548 | -9/Mines | A Derelict revealed a hidden shortcut to a safe place 1695 | -9/Mines | Received a Rocket Launcher from a helpful Derelict 1719 | -9/Mines | Core integrity fell below 50% 1722 | -9/Mines | Discovered new exit (range 5) 1774 | -9/Mines | Lost 4 parts (1p2n1u) 1874 | -9/Mines | Found a damaged Exp. Sensor Array with a note attached 1876 | -9/Mines | Found Prototype Device 1876 | -9/Mines | Identified Exp. Sensor Array 1957 | -9/Mines | Met a Derelict who couldn't figure out how to use a Trap Extractor 2044 | -9/Mines | Deemed a non-threat by the Exiles lab entrance 2044 | -9/Mines | Discovered new exit (range 5) 2048 | -9/Mines | Entered Exiles 2070 | -9/Exiles | Met 8R-AWN 2088 | -9/Exiles | Met EX-HEX 2115 | -9/Exiles | Met EX-BIN 2126 | -9/Exiles | Aligned with FarCom system 2127 | -9/Exiles | Given EX-Vault access code 2147 | -9/Exiles | Opened EX-Vault 2155 | -9/Exiles | Found Field Lobotomy Kit 2174 | -9/Exiles | Warned to stay clear of 0b10 Research branches 2234 | -9/Exiles | Discovered new exit (range 14) 2244 | -9/Exiles | Left Exiles lab with Field Lobotomy Kit 2244 | -9/Exiles | Entered Mines 2472 | -8/Mines | Discovered new exit (range 15) 2491 | -8/Mines | Entered Materials 2491 | -8/Materials | Evolved 2 slots: Utility x2 2719 | -8/Materials | Discovered new exit (range 16) 2762 | -8/Materials | Entered Factory 2762 | -7/Factory | Evolved 2 slots: Utility x2 3341 | -7/Factory | Lost 6 parts (1n3u2w) 3383 | -7/Factory | Discovered new exit (range 14) 3629 | -7/Factory | Build established: Hauler-Assassin 3679 | -7/Factory | Entered another Factory area 3679 | -6/Factory | Evolved 2 slots: Utility x2 4006 | -6/Factory | Spotted B-75 Beast 4012 | -6/Factory | Assimilated B-75 Beast with FLK Orb 4719 | -6/Factory | Lost 6 parts (1n5u) 4945 | -6/Factory | Build established: Hauler-Mutant 5021 | -6/Factory | Discovered new exit (range 10) 5041 | -6/Factory | Entered another Factory area 5041 | -5/Factory | Evolved 2 slots: Utility x2 6137 | -5/Factory | Discovered new exit (range 8) 6188 | -5/Factory | Entered another Factory area 6188 | -4/Factory | Evolved 2 slots: Utility x2 6420 | -4/Factory | Garrison activated, responded to threat 6465 | -4/Factory | Destroyed 9 combat bots 6466 | -4/Factory | Lost 4 parts (2n1u1w) 6602 | -4/Factory | Released all parts (7) 6633 | -4/Factory | Lost 12 parts (2n8u2w) 6688 | -4/Factory | Search patrols dispatched 6881 | -4/Factory | Build established: Mutant 6930 | -4/Factory | Core integrity fell below 50% 6953 | -4/Factory | System corruption reached 10% 6962 | -4/Factory | Core integrity fell below 20% 6968 | -4/Factory | Lost 3 parts (1n2w) 6982 | -4/Factory | Destroyed by P-70 Sage with Tesla Rifle Last Messages --------------- 06942_ Slammed into P-70 Sage. 06944_ Destabilizing: System corrupted (+1). 06944_ K-01 Serf collects debris. 06946_ Slammed into P-70 Sage. 06948_ Destabilizing: System corrupted (+2). 06949_ K-01 Serf collects debris. 06950_ Slammed into P-70 Sage. 06954_ K-01 Serf collects debris. 06961_ Construction Platform disabled. 06963_ System corrupted: Matter fused (-6). 06964_ Acquired Adv. VSS Leg. 06968_ Kicked P-70 Sage out of the way. 06969_ Kicked P-70 Sage. 06972_ Kicked P-70 Sage out of the way. 06973_ Broken F-cell Engine destroyed. 06973_ Kicked P-70 Sage. 06979_ Kicked P-70 Sage out of the way. 06980_ Kicked P-70 Sage. 06981_ System corrupted: Matter fused (-6). 06981_ Kicked P-70 Sage. Map ----- +----------------------------------------------------+ | ?????????????????????????????????????????????????? | | ?????????????????????????????????????????????????? | | ?????????????????????????????????????????????????? | | ?????????????????????????????????????????????????? | | ?????????????????????????????????????????????????? | | ?????????????????????????????????????????????????? | | ?????????????????????????????????????????????????? | | ?????????????????????????????????????????????????? | | ??????????????????????g??????????????????????????? | | ?????????????????????????????????????????????????? | | ?????????????????????????????????????????????????? | | ?????????????????????????????????????????????????? | | ????????????????????? !!????????????????????????? | | ????????????????????# ! ????????????????????????? | | ???????????????#????# ????????????????????????? | | ?????????????? ???# ???????????????????????? | | ??????????????? =???# ???????????????????????? | | ???????????????? ??# ???????????????????????? | | ????????????????? ?# ???????????????????????? | | ?????????????????? # ????????????????????????? | | ??????????????????? # ?? ????????????????????? | | ????????????????????+ ?? ????????????????????? | | ????????????????????# ###+#####????????????????? | | ????????????????????# # ?????????????????? | | ????????????????????# #p""""""" ???????????????? | | ????????????????????# #@""""""" #??????????????? | | ????????????????????# p """"""" #??????????????? | | ???????????########## # """""" #??????????????? | | ???????????# # # #??????????????? | | ???????????# # # ! #??????????????? | | ???????????# """ # # #??????????????? | | ???????????# """ #w ###########??????????????? | | ?########### """ # #????????????????????????? | | ?# [ ## "" # #????????????????????????? | | ?? """ ## "" # #????????????????????????? | | ?# """"" !## / #????????????????????????? | | ?# """"" ## # #????????????????????????? | | ?# ######+#### #????????????????????????? | | ?# """ #??# #????????????????????????? | | ?# """"" #### #????????????????????????? | | ?# """"" + ???????????????????? | | ?# # ???????????????????? | | ?########+# """ ???????????????????? | | ????????# """ ##### ????????????????????? | | ????????# """ #???? ???????????????????? | | ######### """ #???? ???????????????????? | | ## #???? ??????????????????? | | """"" ## #???? ??????????????????? | | """"" ## !!! #???? ??????????????????? | | """"" # !!! !#????##+## ?????????????????? | +----------------------------------------------------+ Best States ------------- Heat Dissipation 62 Coolant Potential 50 Energy Generation 19 Energy Capacity 500 Matter Stores 300 Matter Capacity 300 Sight Range 16 Robot Scan Range 16 Terrain Scan Range 14 Terrain Scan Density 110 Jamming Range 12 Additional Mass Support 6 Armor Coverage 1125 Resistance: KI 30 Resistance: TH 20 Resistance: EM 25 Evasion (%) 57 Targeting Accuracy 5 Launcher Accuracy 20 Target Analysis 5 Armor Integrity Analysis 30 Recoil Reduction 2 Matter Filtering 30 Offensive Hacking 10 Defensive Hacking 12 Item Schematics ----------------- None Robot Schematics ------------------ None Fabricated ------------ Nothing Repaired ---------- Nothing Studied --------- Wheel | -9/Materials | Hacked Com. Wheel | -9/Materials | Hacked Arm. Wheel | -5/Factory | Hacked Alien Tech Used ----------------- None Achievements -------------- Packrat Challenges ------------ None Game ------ Seed ReinforcedPrecisionSource Manual? 0 Play Time 01:09:10 Cumulative 88.8 hours Start 2026.07.14 @ 19:42:48 End 2026.07.15 @ 00:00:13 Sessions 3 Manual Loads 0 Difficulty Rogue Special Mode None Game No. 101 Rogue 47 Adventurer 54 Explorer 0 Win Type - Total 2 Types 2/0/0/0/0/0/0/0/0/0 Lore% 40 Gallery% 46 Achievement% 42 Wizard Run 0 Options --------- Layout 1 ASCII 0 Keyboard 0 Movement Mouse Keybinds 1 Fullscreen 1 Font 32/Tamsyn Map View 50x35 Zoom Use 0% Tactical HUD 1 Map Filters NONE Filters NONE Steam 1 RUN: e2e50468-3ee9-4460-86c2-f222f2c19b6e